Cogmind - Beta 17 @@@ ROGUE MODE // 2026.08.01 @ 19:30:23 Player: shockman27 Result: Self-destructed Performance ------------- Evolutions (6) 3000 Regions Visited (26) 5200 Robots Destroyed (384) 1920 Value Destroyed (15675) 15675 Prototype IDs (48) 960 Alien Tech Used (0) 0 Bonus (7205) 7205 TOTAL SCORE: 33960 Bonus ------- Triggered High Security 500 High Alert Combat Kills 2050 Follower Combat Kills 2675 Entered Garrisons 800 Used RIF Installer 1500 Entered DSFs 500 Aligned with FarCom 300 Friendly Fire -1120 Cogmind --------- Core Integrity 1043/1150 Matter 153/300 Energy 350/350 System Corruption 2% Temperature Critical (617) Movement Core (1900) Ox37 Location -4/Garrison Parts ------- > --- POWER (2) -------- Reinforced Quantum Reactor (fused) > --- PROPULSION (6) --- (None) > --- UTILITY (7) ------ Huge Storage Unit Enhanced Optical Array Advanced Targeting Computer Relay Coupler [NC] (38) Improved Dynamic Insulation System > --- WEAPON (4) ------- (None) > --- INVENTORY (25) --- Light Fission Core Antimatter Reactor Antimatter Reactor Medium Treads Improved Kinecellerator Advanced Transmission Jammer Layered Medium Armor Plating Graphene Brace Gamma Rifle Heavy Phase Cannon Heavy Gauss Cannon Micro-nuke Launcher Micro-nuke Launcher Micro-nuke Launcher Improved Remote Datajack Field Lobotomy Kit (1) CPS Tube (2) Heavy Flail Peak State ------------ > --- POWER ------------ Quantum Reactor Reinforced Quantum Reactor > --- PROPULSION ------- Heavy Treads Heavy Treads Improved Heavy Treads > --- UTILITY ---------- Advanced Cooling System Huge Storage Unit Enhanced Optical Array Advanced Targeting Computer Experimental Reaction Control System Relay Coupler [NC] Improved Dynamic Insulation System > --- WEAPON ----------- HERF Cannon Heavy Phase Cannon KE Penetrator Railgun > --- INVENTORY -------- Antimatter Reactor Antimatter Reactor Medium Treads Armored Medium Treads Advanced Medium Treads High-capacity Matter Pod Improved Kinecellerator Improved Weapon Shielding Heavy Armor Plating Layered Medium Armor Plating Medium Reflective Plating Graphene Brace Long-range Tractor Beam Railgun Heavy Gauss Cannon Heavy Linear Accelerator Micro-nuke Launcher Micro-nuke Launcher Micro-nuke Launcher Improved Remote Datajack Field Lobotomy Kit CPS Tube Heavy Flail [Rating: 128] Favorites ----------- Power Cooled Ion Engine Engine Cooled Ion Engine Power Core Reinforced Fission Core Reactor Reinforced Quantum Reactor Propulsion Light Treads Treads Light Treads Flight Unit Improved Flight Unit Utility Huge Storage Unit Device Improved Cooling System Storage Huge Storage Unit Processor Advanced Targeting Computer Hackware Relay Coupler [NC] Protection Hardened Medium Armor Plating Weapon KE Penetrator Energy Gun Precision Beam Rifle Energy Cannon HERF Cannon Ballistic Gun KE Penetrator Ballistic Cannon Heavy Gauss Cannon Launcher Missile Launcher Special Weapon Field Lobotomy Kit Impact Weapon Heavy Flail Build | -11 -10 -10 -9 -9 -9 -8 -8 -8 -8 -8 -8 -6 -6 -6 -6 -5 -5 -5 -5 -5 -5 -4 -4 -4 -4 -4 ------- Run | Yrd Mat Min Mat Min Exi Min Mat Sto Gar Rec Scr Fac Gar Fac DSF Fac Gar Fac Upp Upp War Pro Fac Was Fac Gar Slots Evolved 12 | . . . 2 . . . 2 . . . . 4 . . . 2 . . . . . . 2 . . . Power 1 | . . . . . . . . . . . . . . . . 1 . . . . . . . . . . Propulsion 4 | . . . 1 . . . 1 . . . . 1 . . . 1 . . . . . . . . . . Utility 5 | . . . . . . . 1 . . . . 2 . . . . . . . . . . 2 . . . Weapon 2 | . . . 1 . . . . . . . . 1 . . . . . . . . . . . . . . Parts Attached 216 | 7 8 10 31 4 . . 17 15 3 3 2 15 28 . 7 8 22 2 8 5 . 7 6 6 1 1 Power 14 | 1 . 1 1 . . . 1 2 . . . 1 2 . . 1 2 . . . . . 1 1 . . Engine 8 | 1 . 1 1 . . . 1 2 . . . 1 1 . . . . . . . . . . . . . Core 1 | . . . . . . . . . . . . . . . . . 1 . . . . . . . . . Reactor 5 | . . . . . . . . . . . . . 1 . . 1 1 . . . . . 1 1 . . Propulsion 52 | 2 3 1 12 . . . 6 5 . 1 . 2 8 . . 1 8 . . . . 1 . 2 . . Treads 50 | 2 2 1 12 . . . 6 4 . 1 . 2 8 . . 1 8 . . . . 1 . 2 . . Leg . | . . . . . . . . . . . . . . . . . . . . . . . . . . . Wheel . | . . . . . . . . . . . . . . . . . . . . . . . . . . . Hover . | . . . . . . . . . . . . . . . . . . . . . . . . . . . Flight 2 | . 1 . . . . . . 1 . . . . . . . . . . . . . . . . . . Utility 68 | 2 2 3 3 1 . . 7 . 1 2 2 8 5 . 1 4 7 1 7 2 . 4 3 1 1 1 Device 29 | 1 . 1 . . . . 1 . . . . 6 4 . . 3 3 1 2 2 . 2 1 1 . 1 Storage 9 | 1 1 1 2 . . . 1 . . . 1 . . . . 1 . . . . . 1 . . . . Processor 5 | . . . . . . . 1 . . . . 1 . . . . . . 1 . . . 1 . 1 . Hackware 2 | . . . . . . . . . 1 . . . . . . . . . . . . . 1 . . . Protection 23 | . 1 1 1 1 . . 4 . . 2 1 1 1 . 1 . 4 . 4 . . 1 . . . . Artifact . | . . . . . . . . . . . . . . . . . . . . . . . . . . . Weapon 82 | 2 3 5 15 3 . . 3 8 2 . . 4 13 . 6 2 5 1 1 3 . 2 2 2 . . Energy Gun 7 | 1 . 2 1 . . . . 2 . . . . . . . . . . . . . . . 1 . . Energy Cannon 11 | . 1 2 1 . . . . . . . . 1 2 . . . 2 1 . . . 1 . . . . Ballistic Gun 40 | 1 . 1 10 3 . . 2 4 2 . . 2 3 . 6 1 1 . 1 2 . 1 . . . . Ballistic Cannon 6 | . . . . . . . 1 . . . . . 1 . . . 2 . . 1 . . . 1 . . Launcher 13 | . 1 . 3 . . . . 1 . . . 1 5 . . 1 . . . . . . 1 . . . Special Weapon 3 | . . . . . . . . . . . . . 2 . . . . . . . . . 1 . . . Impact Weapon 2 | . 1 . . . . . . 1 . . . . . . . . . . . . . . . . . . Slashing Weapon . | . . . . . . . . . . . . . . . . . . . . . . . . . . . Piercing Weapon . | . . . . . . . . . . . . . . . . . . . . . . . . . . . Special Melee Weapon . | . . . . . . . . . . . . . . . . . . . . . . . . . . . Unidentified Prototypes 12 | . 1 . 1 . . . . 3 . . . 3 . . . 2 . . 1 . . . . 1 . . Corrupted Parts 1 | . . . . . . . . . . . . . . . . . 1 . . . . . . . . . System Corruption 12 | . . . . . . . . . . . . . . . . . 12 . . . . . . . . . Parts Lost 49 | . . 2 . 1 . 2 5 . 1 . . 4 7 . . . 6 . 2 1 . 4 . 1 . 13 Power 5 | . . 1 . . . . . . . . . 1 . . . . 1 . . . . 1 . . . 1 Propulsion 15 | . . . . . . 2 . . 1 . . 1 1 . . . 3 . . . . 1 . 1 . 5 Utility 16 | . . . . 1 . . 2 . . . . 2 3 . . . 2 . 2 . . 1 . . . 3 Weapon 13 | . . 1 . . . . 3 . . . . . 3 . . . . . . 1 . 1 . . . 4 Highest Loss Streak 11 | . . 1 . 1 . 1 2 . 1 . . 2 3 . . . 2 . 2 1 . 2 . 1 . 11 To Critical Strikes 1 | . . . . . . . 1 . . . . . . . . . . . . . . . . . . . Average Backups 21 | 3 9 12 17 19 20 19 19 24 24 24 24 22 23 24 24 24 22 24 23 22 23 21 21 22 23 20 Power 1 | . 1 1 1 1 1 1 1 1 1 1 1 . . 2 2 1 . 1 1 1 1 . . 1 2 2 Propulsion 3 | 1 1 2 2 5 5 3 3 6 5 5 4 2 2 4 4 3 1 2 2 2 2 1 1 2 3 2 Utility 7 | . 2 5 7 6 6 6 7 7 8 9 9 8 7 6 6 7 9 10 10 10 11 10 9 8 8 6 Weapon 7 | . 3 4 6 7 7 7 6 8 8 8 7 7 7 8 8 8 8 7 6 5 6 5 7 7 7 7 Tool/Special . | . . . . . . . . . . . . . . . . . . . . . . . . . . . Unused Backups 58 | . 10 . 9 . . . 7 5 1 2 1 1 4 . 2 3 5 1 . . . . 1 1 . 5 Power 7 | . . . 3 . . . 1 1 . . . . 1 . . . . . . . . . . . . 1 Propulsion 7 | . 2 . . . . . . 2 . 1 . . 1 . . 1 . . . . . . . . . . Utility 21 | . 3 . 3 . . . 5 . . 1 1 . 1 . 1 1 5 . . . . . . . . . Weapon 21 | . 5 . 3 . . . 1 2 1 . . 1 1 . 1 . . 1 . . . . 1 1 . 3 Tool/Special 2 | . . . . . . . . . . . . . . . . 1 . . . . . . . . . 1 Average Slot Usage (%) 94 | . 100 99 99 100 100 100 99 98 99 100 100 99 90 80 85 82 81 76 78 81 82 79 83 82 84 80 Engine 7 | . 14 13 11 11 11 11 9 8 9 9 9 6 4 . . . . . . . . . . . . . Reactor 2 | . . . . . . . . . . . . . 1 6 6 11 10 11 11 11 11 7 9 10 10 9 Treads 29 | . 28 28 33 33 33 33 35 35 36 36 36 32 27 20 20 17 21 17 17 17 17 18 21 15 15 16 Device 4 | . 13 6 . . . . . . . . . 6 11 13 13 16 7 5 7 11 11 7 5 13 10 9 Storage 8 | . 14 14 11 11 11 11 9 9 9 9 9 6 6 6 6 5 5 5 5 5 5 5 5 5 5 5 Processor 5 | . . . . . . . 8 9 9 9 9 11 6 6 6 5 5 5 4 5 5 5 10 10 14 13 Protection 7 | . . 7 11 11 11 11 8 8 8 9 9 6 5 . 5 . 4 5 5 5 5 4 4 . . . Energy Gun 2 | . 1 11 . . . . . 1 1 9 9 5 3 . . . . . . . . . . . . . Energy Cannon 1 | . 12 8 1 . . . . . . . . . . . . . 3 5 . 3 . 1 . 5 . . Ballistic Gun 20 | . 12 6 28 33 33 26 25 21 20 18 18 18 16 20 22 23 17 17 21 14 17 15 15 12 15 14 Peak Build Rating 128 | 7 10 15 21 23 23 24 31 38 41 38 37 55 92 92 98 111 120 121 119 120 119 119 120 128 127 124 Average Rating 51 | 5 7 10 19 21 22 23 28 35 37 37 36 49 63 92 95 110 108 118 116 119 119 109 118 117 124 116 On Entrance 67 | . 7 9 15 19 23 23 22 28 36 38 37 37 52 92 92 96 111 119 119 118 119 119 110 119 127 124 Avg Prop Armor Cover (%) 6 | . . . . . . . . . . . . . . . . . . . . . 6 . . . . . Naked Turns . | . . . . . . . . . . . . . . . . . . . . . . . . . . . Heaviest Build 198 | 14 25 39 63 65 65 67 107 108 111 106 104 115 145 133 143 147 198 182 187 184 178 182 177 168 166 163 Greatest Support 225 | 40 40 40 60 60 60 60 89 91 89 89 86 107 180 180 180 225 225 210 210 210 210 210 207 215 215 215 Greatest Overweight (x) 4 | 4 1 . 1 1 1 1 1 2 1 1 1 1 1 . . . 1 . . . 1 1 . 1 . . Average Overweight (x) . | . . . . 1 1 1 . 1 1 1 1 1 . . . . . . . . . . . . . . Largest Inventory Capacity 25 | 8 10 15 20 20 20 20 25 25 25 25 25 25 25 25 25 25 25 25 25 25 25 25 25 25 25 25 Average Capacity 22 | 7 9 13 18 20 20 20 21 25 25 25 25 25 25 25 25 25 25 25 25 25 25 25 25 25 25 25 Most Carried 25 | 6 10 15 20 20 20 20 20 25 25 25 25 25 25 25 25 25 25 25 25 25 25 25 25 25 25 23 Average Carried 21 | 3 9 12 17 19 19 19 19 24 24 24 24 23 24 25 24 24 24 24 24 24 25 23 22 24 24 21 Final Capacity 25 | 8 10 15 20 20 20 20 25 25 25 25 25 25 25 25 25 25 25 25 25 25 25 25 25 25 25 25 Final Carried 25 | 6 10 15 20 20 20 20 18 25 25 25 25 24 25 25 25 25 25 25 23 25 25 22 24 24 23 18 Class Distribution -------------------- 23% | Scavenger-Tank 23% | Skirmisher 15% | Gunner 14% | Tank 9% | Mutant 5% | Scavenger-Skirmisher 3% | Commander-Mutant Dominant Class ---------------- Mutant | -10/Materials Mutant | -10/Mines Scavenger-Tank | -9/Materials Scavenger-Tank | -9/Mines Scavenger-Tank | -9/Exiles Scavenger-Skirmisher | -8/Mines Skirmisher | -8/Materials Skirmisher | -8/Storage Skirmisher | -8/Garrison Skirmisher | -8/Recycling Gunner | -8/Scraptown Gunner | -6/Factory Gunner | -6/Garrison Tank | -6/Factory Tank | -6/DSF Scavenger-Tank | -5/Factory Scavenger-Tank | -5/Garrison Scavenger-Tank | -5/Factory Scavenger-Tank | -5/Upper Caves Tank | -5/Upper Caves Tank | -5/Warlord Tank | -4/Proximity Caves Tank | -4/Factory Skirmisher | -4/Waste Gunner | -4/Factory Gunner | -4/Garrison Resources | -11 -10 -10 -9 -9 -9 -8 -8 -8 -8 -8 -8 -6 -6 -6 -6 -5 -5 -5 -5 -5 -5 -4 -4 -4 -4 -4 ----------- Run | Yrd Mat Min Mat Min Exi Min Mat Sto Gar Rec Scr Fac Gar Fac DSF Fac Gar Fac Upp Upp War Pro Fac Was Fac Gar Matter Collected 13912 | 293 347 320 1197 140 . 341 1303 887 821 204 64 607 1522 . 291 251 1870 215 654 531 . 1051 . 392 . 611 Remotely 329 | . . . . . . . . . . . . . . . . . . . . . . . . . . 329 Salvage Created 17218 | 47 742 426 1841 136 . 478 1969 1656 751 811 . 864 1845 . 338 423 2171 208 763 595 . 470 124 56 . 504 Parts 869 | 14 61 23 117 5 . 60 103 71 42 26 . 42 75 . 8 15 91 7 31 33 . 22 10 1 . 12 Haulers Intercepted 22 | . 2 . 6 . . . 5 6 . . . 1 . . 1 . . . 1 . . . . . . . Recyclers Shooed 9 | . 1 . 1 . . . . . . 2 . 3 . . . 1 . 1 . . . . . . . . Parts Field Recycled . | . . . . . . . . . . . . . . . . . . . . . . . . . . . Retrieved Matter . | . . . . . . . . . . . . . . . . . . . . . . . . . . . Parts Self-Destructed 74 | . . . . . . . . . . . . . . . . . . . 28 24 . 22 . . . . Prevented 8 | . . . . . . . . . . . . . . . . . . . 1 7 . . . . . . Parts Restored . | . . . . . . . . . . . . . . . . . . . . . . . . . . . Kills | -11 -10 -10 -9 -9 -9 -8 -8 -8 -8 -8 -8 -6 -6 -6 -6 -5 -5 -5 -5 -5 -5 -4 -4 -4 -4 -4 ------- Run | Yrd Mat Min Mat Min Exi Min Mat Sto Gar Rec Scr Fac Gar Fac DSF Fac Gar Fac Upp Upp War Pro Fac Was Fac Gar Combat Hostiles Destroyed 275 | . 16 7 31 . . 20 34 23 20 2 . 11 23 . 5 7 30 3 12 11 . 10 2 . . 8 Guns 168 | . 3 3 15 . . 4 20 23 8 2 . 8 19 . 5 7 23 2 8 8 . 4 . . . 6 Cannons 25 | . 6 . 5 . . . . . . . . . 1 . . . 1 1 . 3 . 4 2 . . 2 AOE 80 | . 6 4 11 . . 16 14 . 12 . . 3 3 . . . 5 . 4 . . 2 . . . . Classes Destroyed 19 | 1 7 2 2 . . 1 . 1 1 . . . 1 . . . 1 . . . . 1 . 1 . . Worker 24 | . 3 4 3 3 . 3 3 3 . . . 2 . . . . . . . . . . . . . . Builder 17 | . 3 2 4 . . 1 3 1 . . . . . . . 1 . . . . . . 2 . . . Tunneler 9 | 3 . 2 . . . 3 1 . . . . . . . . . . . . . . . . . . . Hauler 22 | . 2 . 6 . . . 5 6 . . . 1 . . 1 . . . 1 . . . . . . . Recycler 21 | . . 1 2 1 . 1 3 2 . 9 . 2 . . . . . . . . . . . . . . Mechanic 1 | . . . . . . . . 1 . . . . . . . . . . . . . . . . . . Operator 1 | . 1 . . . . . . . . . . . . . . . . . . . . . . . . . Watcher 11 | . 2 . 5 . . . 2 . . . . . . . . . 1 1 . . . . . . . . Swarmer 68 | . 6 . 7 . . 13 4 3 5 . . 3 7 . 4 . 8 . . 4 . 2 . . . 2 Grunt 115 | . 10 6 12 . . 6 17 11 11 . . 2 10 . . 5 5 3 10 1 . 4 . . . 2 Brawler 8 | . . . 2 . . . 3 . . . . . 1 . . . 1 . . 1 . . . . . . Duelist 4 | . . . 1 . . . . . . . . . . . . . 2 . . 1 . . . . . . Sentry 45 | . . 1 9 . . . 9 8 3 2 . 1 3 . . . 5 . . 2 . 1 . . . 1 Specialist 2 | . . . . . . . . . . . . . 1 . 1 . . . . . . . . . . . Hunter 12 | . . . . . . 1 1 1 . . . 2 1 . . . 3 . . 1 . 2 . . . . Programmer 17 | . . . . . . . . . 1 . . 3 . . . 2 5 . 2 1 . . 2 . . 1 Behemoth 3 | . . . . . . . . . . . . . . . . . 1 . . . . 1 . . . 1 Tinkerer 1 | . . . . . . . . . . . . . . . . . . . . . . 1 . . . . Thug 2 | . . . . . . . . . . . . . . . . . . . . . . . . . . 2 Butcher 1 | . . . . . . . . . . . . . 1 . . . . . . . . . . . . . Martyr 1 | . . . . . . . . . . . . . . . . . . . . . . . . 1 . . Best Kill Streak 13 | 1 3 3 5 1 . 6 13 8 4 6 . 4 4 . 2 6 11 3 6 4 . 4 4 . . 5 Combat Bots Only 11 | . 3 2 4 . . 4 11 7 4 2 . 3 4 . 2 5 11 3 5 4 . 4 2 . . 5 Max Kills in Single Turn 5 | 1 3 2 4 1 . 4 5 2 3 1 . 2 2 . 2 2 2 1 3 2 . 2 2 1 . 1 Gunslinging 1 | . . . 1 . . . . 1 . . . . 1 . 1 1 1 . 1 1 . . . . . . Exploded 4 | . 3 2 4 . . 4 3 . 3 . . 2 2 . . . 2 . 3 . . 2 . . . . Melee . | . . . . . . . . . . . . . . . . . . . . . . . . . . . Uniques/NPCs Destroyed . | . . . . . . . . . . . . . . . . . . . . . . . . . . . Combat | -11 -10 -10 -9 -9 -9 -8 -8 -8 -8 -8 -8 -6 -6 -6 -6 -5 -5 -5 -5 -5 -5 -4 -4 -4 -4 -4 -------- Run | Yrd Mat Min Mat Min Exi Min Mat Sto Gar Rec Scr Fac Gar Fac DSF Fac Gar Fac Upp Upp War Pro Fac Was Fac Gar Hostile Shots Fired 1142 | . 42 28 101 6 . 35 103 81 33 10 . 63 119 . 7 9 133 17 101 33 . 102 4 . . 115 Missed 267 | . 17 3 32 . . 12 24 17 6 2 . 20 30 . 4 1 28 4 16 7 . 37 1 . . 6 Hits 875 | . 25 25 69 6 . 23 79 64 27 8 . 43 89 . 3 8 105 13 85 26 . 65 3 . . 109 Melee 6 | . . . . . . . 1 . . . . . . . . . 4 . . 1 . . . . . . Projectile 869 | . 25 25 69 6 . 23 78 64 27 8 . 43 89 . 3 8 101 13 85 25 . 65 3 . . 109 AOE 7 | . . . . 6 . . . . . . . . . . . 1 . . . . . . . . . . Critical Strikes 39 | . 1 2 . . . . 3 4 1 . . . 2 . 1 . 9 . 4 . . 4 . . . 8 Actively Blocked 3 | . . . . . . . . . . . . . . . . . . . . . . 3 . . . . Part Disruptions 1 | . . . . . . . . . . . . . . . . . . . . . 1 . . . . . Damage Taken 17307 | . 367 381 909 223 . 380 1271 927 462 120 . 898 1553 . 263 357 2183 314 1731 536 86 1577 57 69 . 2643 Core 1293 | . 43 14 140 . . 61 103 72 61 . . 199 73 . 58 23 84 . 150 18 . 87 . 4 . 103 Absorbed by Shields 40 | . . . . . . . . . 22 . . . . . . . 18 . . . . . . . . . Reduced by Siege Mode 643 | . . . . . . . . . . . . . 52 . . 15 108 6 107 . . 107 . . . 248 Regen/Repaired (Parts) 1220 | . 116 . . . . . 389 258 . . . 168 . . . . . . . . . . . 273 . 16 Core Remaining (%) 67 | 100 . 77 . . . 49 . . . . 57 . . . 61 . . . . . . 63 . . . . Volleys Fired 907 | 12 49 32 87 6 . 27 90 59 58 18 . 33 134 . 10 10 134 11 25 20 3 42 6 15 . 26 Largest 4 | 2 2 2 3 3 . 3 3 3 3 3 . 4 4 . 4 4 4 4 4 4 4 4 4 3 . 4 Hottest 234 | 60 80 120 107 79 . 79 121 107 76 109 . 146 234 . 150 132 189 187 136 209 154 209 154 178 . 161 Shots Fired 2355 | 24 95 63 250 18 . 57 250 177 118 55 . 117 283 . 34 40 286 47 80 72 12 137 18 24 . 98 Gun 1938 | 24 47 48 219 18 . 45 233 177 103 55 . 115 241 . 29 40 192 36 71 45 9 93 12 12 . 74 Cannon 326 | . 44 10 24 . . . 7 . . . . . 24 . 3 . 88 11 3 27 3 42 6 10 . 24 Launcher 85 | . 4 5 7 . . 12 10 . 15 . . 2 17 . . . 5 . 6 . . 2 . . . . Special 6 | . . . . . . . . . . . . . 1 . 2 . 1 . . . . . . 2 . . Kinetic 1807 | 12 46 23 219 18 . 45 238 149 91 36 . 84 141 . 32 40 201 36 71 59 12 126 18 12 . 98 Thermal 387 | 12 45 22 24 . . . 2 28 12 19 . 31 124 . . . 58 . . . . 9 . 1 . . Explosive 68 | . 4 5 7 . . 12 10 . 9 . . 2 9 . . . 5 . 3 . . 2 . . . . Electromagnetic 87 | . . 13 . . . . . . 6 . . . 8 . . . 21 11 6 13 . . . 9 . . Robot Hit Streak 39 | 3 6 10 20 3 . 15 18 39 15 21 . 24 33 . 6 17 18 7 8 7 . 19 6 6 . 27 Robot Miss Streak 6 | 1 6 4 2 3 . 2 3 2 4 2 . 4 4 . 2 2 4 4 5 5 . 2 3 5 . 6 Penetration Max 1 | . . . . . . 1 1 1 . . . 1 1 . . 1 1 1 1 1 . . . 1 . 1 Secondary Targets 30 | . . 1 1 . . 1 3 1 2 1 . 2 5 . 2 1 5 . 3 2 . . . . . . Max Gunslinging Chain 2 | . . 1 1 . . 1 1 1 1 1 . 1 1 . 2 1 1 . 1 1 . . . . . . Shots Hit Robots 1509 | 17 42 34 171 9 . 34 179 140 53 33 . 89 211 . 18 29 152 21 49 39 . 91 9 16 . 73 Core Hits 729 | 3 31 25 72 4 . 35 79 60 44 13 . 39 95 . 8 20 72 10 34 18 . 28 7 4 . 28 Critical Kills 15 | . 1 . . . . . . 1 . . . 1 . . . . 6 . 3 2 . 1 . . . . Critical Parts Destroyed 20 | . 1 . . . . . 2 2 . . . . 2 . 1 1 4 . 3 . . 1 . 1 . 2 Critical Strikes 72 | . 2 2 . . . . 2 8 . 2 . 4 11 . 1 1 13 . 6 7 . 9 1 1 . 2 Burn 19 | . . . . . . . . 5 . 2 . 3 9 . . . . . . . . . . . . . Meltdown 4 | . 1 . . . . . . . . . . . . . . . 3 . . . . . . . . . Destroy 32 | . . . . . . . 2 1 . . . 1 2 . 1 1 8 . 6 4 . 3 . 1 . 2 Blast 12 | . . . . . . . . . . . . . . . . . 2 . . 3 . 6 1 . . . Corrupt 2 | . . 2 . . . . . . . . . . . . . . . . . . . . . . . . Smash 3 | . 1 . . . . . . 2 . . . . . . . . . . . . . . . . . . Melee Attacks 78 | . 11 2 8 . . 2 2 8 13 . . 5 25 . . . 1 . . . . . . 1 . . Impact 78 | . 11 2 8 . . 2 2 8 13 . . 5 25 . . . 1 . . . . . . 1 . . Slashing . | . . . . . . . . . . . . . . . . . . . . . . . . . . . Piercing . | . . . . . . . . . . . . . . . . . . . . . . . . . . . Sneak Attacks 8 | . 2 1 . . . . . 3 . . . 1 . . . . . . . . . . . 1 . . Combat Hostiles . | . . . . . . . . . . . . . . . . . . . . . . . . . . . Follow-up Attacks . | . . . . . . . . . . . . . . . . . . . . . . . . . . . Damage Inflicted 41627 | 193 1069 995 3545 181 . 1677 4701 2562 2301 557 . 2021 5495 . 434 836 5798 762 1860 822 . 2474 355 460 . 2529 Guns 25739 | 193 278 503 2497 181 . 463 3028 2248 874 557 . 1626 3377 . 390 836 2990 537 1097 499 . 1330 224 326 . 1685 Cannons 6295 | . 406 88 232 . . . 128 . . . . . 768 . 44 . 2121 225 37 323 . 862 131 86 . 844 Explosions 8832 | . 265 347 815 . . 1122 1481 . 1427 . . 330 1350 . . . 687 . 726 . . 282 . . . . Melee 582 | . 120 57 . . . . . 308 . . . 49 . . . . . . . . . . . 48 . . Ramming 179 | . . . 1 . . 92 64 6 . . . 16 . . . . . . . . . . . . . . Kinetic 25184 | 75 266 292 2497 181 . 463 3131 1792 688 282 . 1123 1756 . 434 836 3747 537 1097 655 . 2122 355 326 . 2529 Thermal 6323 | 118 418 256 232 . . . 430 456 186 275 . 503 2511 . . . 832 . . . . 70 . 36 . . Explosive 7206 | . 265 241 815 . . 1122 1076 . 946 . . 330 791 . . . 687 . 651 . . 282 . . . . Electromagnetic 2153 | . . 149 . . . . . . 481 . . . 437 . . . 532 225 112 167 . . . 50 . . Impact 582 | . 120 57 . . . . . 308 . . . 49 . . . . . . . . . . . 48 . . Slashing . | . . . . . . . . . . . . . . . . . . . . . . . . . . . Piercing . | . . . . . . . . . . . . . . . . . . . . . . . . . . . Highest Corruption 34 | . 4 4 . . . . 5 2 3 3 . 2 2 2 2 . 24 27 31 34 34 . 1 1 1 2 Average Corruption 7 | . 4 4 . . . . 4 1 2 3 . 1 2 2 2 . 12 25 27 32 34 . 1 1 1 1 Corruption Purged 5 | . . . . . . . 5 . . . . . . . . . . . . . . . . . . . Corruption Blocked . | . . . . . . . . . . . . . . . . . . . . . . . . . . . Effects 434 | . 6 23 . . . . 9 17 45 39 . 11 37 . 4 . 114 27 33 57 3 . . 5 3 1 Message Errors 99 | . 1 8 . . . . 2 2 10 9 . 3 13 . 1 . 24 6 8 8 . . . 2 1 1 Matter Fused 109 | . 2 6 . . . . 4 7 9 8 . 2 7 . 2 . 27 6 10 16 1 . . 1 1 . Heat Flow Errors 43 | . 1 . . . . . 1 2 4 2 . 2 6 . 1 . 13 2 2 7 . . . . . . Energy Discharges 50 | . 1 2 . . . . 1 2 7 8 . . 1 . . . 15 5 4 3 1 . . . . . Parts Rejected 4 | . . . . . . . . . 1 . . . 1 . . . 1 . 1 . . . . . . . Parts Fused 3 | . . . . . . . . . . 1 . . . . . . 2 . . . . . . . . . Data Loss (minor) 58 | . . 2 . . . . 1 3 6 6 . 3 3 . . . 12 3 6 9 1 . . 2 1 . Data Loss (major) 19 | . . . . . . . . 1 4 2 . 1 2 . . . 3 1 . 5 . . . . . . Misfires 21 | . 1 4 . . . . . . 2 2 . . 1 . . . 8 3 . . . . . . . . Alerts 9 | . . 1 . . . . . . 1 . . . 1 . . . 2 . . 4 . . . . . . Misdirections 2 | . . . . . . . . . . . . . . . . . . 1 . 1 . . . . . . Weapon Failures 17 | . . . . . . . . . 1 1 . . 2 . . . 7 . 2 4 . . . . . . Overload Shots . | . . . . . . . . . . . . . . . . . . . . . . . . . . . Overflow Damage 617 | . 80 44 36 . . 47 67 121 50 . . 1 48 . . . 86 . . . . 27 . . . 10 Projectiles 64 | . . . . . . . . . . . . . 4 . . . 44 . . . . 6 . . . 10 Explosions 331 | . . 27 36 . . 43 67 . 50 . . 1 44 . . . 42 . . . . 21 . . . . Melee 222 | . 80 17 . . . 4 . 121 . . . . . . . . . . . . . . . . . . Knockbacks 15 | . . 1 . . . . 1 . . . . 1 . . . . . . . . . 8 . . . 4 Impact 3 | . . 1 . . . . 1 . . . . 1 . . . . . . . . . . . . . . Kinetic 11 | . . . . . . . . . . . . . . . . . . . . . . 7 . . . 4 Secondary 1 | . . . . . . . . . . . . . . . . . . . . . . 1 . . . . Self-Inflicted Damage 280 | . 38 56 . . . 39 60 . 19 . . . 68 . . . . . . . . . . . . . Shots 8 | . 1 1 . . . 2 2 . 1 . . . 1 . . . . . . . . . . . . . Rammed 16 | . . . 1 1 . 6 6 1 . . . 1 . . . . . . . . . . . . . . Targets Rammed 20 | . . . 1 1 . 7 7 2 . . . 2 . . . . . . . . . . . . . . Kicked . | . . . . . . . . . . . . . . . . . . . . . . . . . . . Crushed 4 | . . . . . . 1 1 1 . . . 1 . . . . . . . . . . . . . . Highest Temperature 730 | . 202 327 265 21 . 109 255 254 338 264 . 535 441 . 202 8 379 286 730 532 42 326 430 121 . 646 Average Temperature 88 | . 53 92 48 11 . 40 32 74 67 108 . 130 101 . 103 7 109 108 208 133 22 78 168 43 . 159 Received Heat Transfer 4104 | . 129 174 291 . . 90 558 441 126 27 . 54 357 . . 36 536 54 733 18 . 129 . . . 351 Effects 59 | . . 1 . . . . . . 1 . . 9 4 . . . 6 . 14 4 . 3 1 . . 16 Shutdowns 14 | . . . . . . . . . 1 . . 1 1 . . . 1 . 6 1 . . 1 . . 2 Energy Bleed 3 | . . 1 . . . . . . . . . . . . . . 1 . 1 . . . . . . . Interference 14 | . . . . . . . . . . . . 6 2 . . . 2 . 1 . . 3 . . . . Matter Decay 5 | . . . . . . . . . . . . . . . . . 2 . . . . . . . . 3 Short Circuit 4 | . . . . . . . . . . . . 1 1 . . . . . 2 . . . . . . . Damage (minor) 3 | . . . . . . . . . . . . . . . . . . . 3 . . . . . . . Damage (major) 14 | . . . . . . . . . . . . . . . . . . . . 3 . . . . . 11 Damage (core) 2 | . . . . . . . . . . . . 1 . . . . . . 1 . . . . . . . Siege Activations 11 | . . . . . . . . . . . . . 3 . . 1 2 2 1 . . 1 . . . 1 Total Turns 292 | . . . . . . . . . . . . . 43 . . 20 71 17 43 . . 35 . . . 63 Longest Duration 63 | . . . . . . . . . . . . . 22 . . 20 44 13 43 . . 35 . . . 63 Martial Activations . | . . . . . . . . . . . . . . . . . . . . . . . . . . . Shielding Activations . | . . . . . . . . . . . . . . . . . . . . . . . . . . . Robots Disrupted . | . . . . . . . . . . . . . . . . . . . . . . . . . . . Combat Hostiles . | . . . . . . . . . . . . . . . . . . . . . . . . . . . Robots Corrupted 3 | . 2 . . . . . . . . . . . . . . . 1 . . . . . . . . . Combat Hostiles . | . . . . . . . . . . . . . . . . . . . . . . . . . . . Parts Fried 12 | . 3 2 . . . . . 3 1 . . . . . . . 3 . . . . . . . . . Impact Corruptions 8 | . 3 1 . . . 1 . 3 . . . . . . . . . . . . . . . . . . Robots Melted 6 | . 1 . . . . . . . . . . . 2 . . . 3 . . . . . . . . . Combat Hostiles 5 | . 1 . . . . . . . . . . . 2 . . . 2 . . . . . . . . . Parts Melted 18 | . 1 . . . . . . 1 . 1 . 1 6 . . 1 7 . . . . . . . . . Heat Transferred 12575 | 275 876 483 481 . . . 287 1369 407 740 . 1258 5038 . . . 1250 . . . . 74 . 37 . . Parts Sabotaged . | . . . . . . . . . . . . . . . . . . . . . . . . . . . Parts Stolen . | . . . . . . . . . . . . . . . . . . . . . . . . . . . Parts Stripped . | . . . . . . . . . . . . . . . . . . . . . . . . . . . Power Chain Reactions 3 | . . 1 . . . . . . 1 . . . 1 . . . . . . . . . . . . . Alert | -11 -10 -10 -9 -9 -9 -8 -8 -8 -8 -8 -8 -6 -6 -6 -6 -5 -5 -5 -5 -5 -5 -4 -4 -4 -4 -4 ------- Run | Yrd Mat Min Mat Min Exi Min Mat Sto Gar Rec Scr Fac Gar Fac DSF Fac Gar Fac Upp Upp War Pro Fac Was Fac Gar Maximum Alert Level 5 | . . . 2 . . 1 2 1 5 3 . . 5 3 3 3 5 5 . . . . . . . 1 Low Security (%) 44 | 100 100 100 65 100 . 88 26 31 4 . . 100 12 . . . . . . . . . 100 100 100 56 Level 1 14 | . . . 27 . . 11 32 68 18 . . . 2 . . 16 . . . . . . . . . 43 Level 2 16 | . . . 7 . . . 41 . 10 58 . . 19 . . 79 20 . . . . . . . . . Level 3 8 | . . . . . . . . . 11 41 . . 31 100 100 3 9 . . . . . . . . . Level 4 8 | . . . . . . . . . 30 . . . 25 . . . 31 18 . . . . . . . . Level 5 6 | . . . . . . . . . 23 . . . 8 . . . 38 2 . . . . . . . . High Security 1 | . . . . . . . . . . . . . . . . . . 79 . . . . . . . . Max Security . | . . . . . . . . . . . . . . . . . . . . . . . . . . . Sterilizations 1 | . . . . . . . . . . . . . . . 1 . . . . . . . . . . . Peak Influence 2873 | 5 92 58 418 160 . 252 460 396 2111 949 . 86 1972 1040 1045 743 2873 2549 . . . . 94 32 . 258 Initial 1507 | . . 18 . 160 . . 40 187 196 949 . . 28 1035 728 548 515 1507 . . . . 63 25 . . Average 513 | . 41 10 193 7 . 117 302 265 1082 685 . 21 912 1038 876 522 1523 2046 . . . . 22 3 . 146 Influence Increases 15384 | 15 525 251 1089 20 . 612 1153 938 2165 225 . 408 2034 5 317 585 2498 1172 273 250 . 230 118 36 . 465 Destroy 0b10 Robot/C 6980 | . 320 140 620 . . 400 680 540 780 40 . 220 660 . 180 300 720 420 240 220 . 200 40 . . 260 Destroy 0b10 Robot/NC 630 | 15 55 45 100 20 . 40 85 70 10 45 . 25 35 . 5 5 45 15 5 . . . 10 . . . Destroy Leader 1212 | . 78 20 192 . . 70 184 174 70 . . 72 50 . 30 40 50 72 20 30 . 30 10 . . 20 Allied During Kill 964 | . . . . . . . . 92 200 . . . 83 . 67 47 123 180 8 . . . . . . 164 Successful Hack 157 | . 10 . 32 . . . 31 14 16 4 . 26 . 5 . . 14 . . . . . 5 . . . Select Force Hacks 120 | . . . . . . . . . . 120 . . . . . . . . . . . . . . . . Disable Machine 570 | . . 15 60 . . . 45 30 60 15 . 15 15 . 30 75 60 105 . . . . 45 . . . Anti-Garrison Action 3050 | . . . . . . . . . 950 . . . 1050 . . . 900 150 . . . . . . . . Destroy Structure 1431 | . 32 31 55 . . 102 113 3 79 1 . 20 126 . 5 118 481 200 . . . . 8 36 . 21 Lose Combat Pursuer 270 | . 30 . 30 . . . 15 15 . . . 30 15 . . . 105 30 . . . . . . . . Influence Decreases 15209 | 15 476 300 676 433 . 508 812 1080 357 1804 532 367 103 937 312 893 362 1516 1246 728 1078 128 146 110 . 290 Entered New Map 8152 | . . 31 . 253 . . 64 258 107 1162 532 . 13 937 312 497 222 1366 936 296 1078 . 39 49 . . Time Decay 5742 | 15 476 259 676 110 . 498 698 632 . 642 . 367 . . . 356 . 50 270 422 . 108 107 56 . . Lost Part 405 | . . 10 . 10 . 10 50 . 10 . . . 70 . . . 60 . 20 10 . 20 . 5 . 130 Lost Ally 760 | . . . . 60 . . . 40 240 . . . 20 . . 40 80 100 20 . . . . . . 160 Purge Threat 150 | . . . . . . . . 150 . . . . . . . . . . . . . . . . . . Squads Dispatched 45 | . 3 1 2 . . . 4 4 . . . 6 . . 1 5 . 18 . . . . 1 . . . Investigation 10 | . 2 1 1 . . . 2 4 . . . . . . . . . . . . . . . . . . Extermination 5 | . . . . . . . . . . . . 3 . . . 1 . . . . . . 1 . . . Reinforcement 8 | . 1 . 1 . . . 1 . . . . 3 . . 1 1 . . . . . . . . . . Assault 19 | . . . . . . . . . . . . . . . . 3 . 16 . . . . . . . . Garrison 3 | . . . . . . . 1 . . . . . . . . . . 2 . . . . . . . . Intercept . | . . . . . . . . . . . . . . . . . . . . . . . . . . . Searches Triggered . | . . . . . . . . . . . . . . . . . . . . . . . . . . . Construction Impeded 2 | . . . . . . . . . . . . 1 . . . 1 . . . . . . . . . . Haulers Reinforced 1 | . . . . . . . . . . . . 1 . . . . . . . . . . . . . . Active Scanning Responses . | . . . . . . . . . . . . . . . . . . . . . . . . . . . Cargo Convoy Interrupts . | . . . . . . . . . . . . . . . . . . . . . . . . . . . Stealth | -11 -10 -10 -9 -9 -9 -8 -8 -8 -8 -8 -8 -6 -6 -6 -6 -5 -5 -5 -5 -5 -5 -4 -4 -4 -4 -4 --------- Run | Yrd Mat Min Mat Min Exi Min Mat Sto Gar Rec Scr Fac Gar Fac DSF Fac Gar Fac Upp Upp War Pro Fac Was Fac Gar Distress Signals 10 | . 3 . 3 . . . 1 3 . . . . . . . . . . . . . . . . . . Communications Jammed 8 | . . . . . . . . . . . . . . . 2 . 1 . . . . . 5 . . . Distress Signals 6 | . . . . . . . . . . . . . . . . . 1 . . . . . 5 . . . Times Spotted 391 | . 26 7 40 2 . 17 50 34 33 2 . 14 37 . 9 13 35 12 12 9 . 9 4 6 1 19 Peak Tracking Total 8 | . 4 2 4 2 . 4 7 7 4 2 . 3 4 . 3 3 6 4 5 2 . 3 2 1 1 8 Tactical Retreats 12 | . 1 . 2 . . . 1 1 . . . 1 1 . . . 4 1 . . . . . . . . Traps | -11 -10 -10 -9 -9 -9 -8 -8 -8 -8 -8 -8 -6 -6 -6 -6 -5 -5 -5 -5 -5 -5 -4 -4 -4 -4 -4 ------- Run | Yrd Mat Min Mat Min Exi Min Mat Sto Gar Rec Scr Fac Gar Fac DSF Fac Gar Fac Upp Upp War Pro Fac Was Fac Gar Traps Triggered 34 | . 1 . 2 . . . 1 5 10 . . 1 2 . 1 . 4 3 . . 1 . 1 . . 2 Indirectly . | . . . . . . . . . . . . . . . . . . . . . . . . . . . Trap Hack Attempts . | . . . . . . . . . . . . . . . . . . . . . . . . . . . Triggered . | . . . . . . . . . . . . . . . . . . . . . . . . . . . Disarmed . | . . . . . . . . . . . . . . . . . . . . . . . . . . . Reprogrammed . | . . . . . . . . . . . . . . . . . . . . . . . . . . . Reused . | . . . . . . . . . . . . . . . . . . . . . . . . . . . Traps Extracted . | . . . . . . . . . . . . . . . . . . . . . . . . . . . Installed . | . . . . . . . . . . . . . . . . . . . . . . . . . . . Triggered . | . . . . . . . . . . . . . . . . . . . . . . . . . . . Machines | -11 -10 -10 -9 -9 -9 -8 -8 -8 -8 -8 -8 -6 -6 -6 -6 -5 -5 -5 -5 -5 -5 -4 -4 -4 -4 -4 ---------- Run | Yrd Mat Min Mat Min Exi Min Mat Sto Gar Rec Scr Fac Gar Fac DSF Fac Gar Fac Upp Upp War Pro Fac Was Fac Gar Machines Disabled 64 | . 1 1 4 . . . 3 2 9 1 . 1 15 . 2 5 8 8 . . . 1 3 . . . Max in Single Turn 2 | . 1 1 2 . . . 2 1 1 1 . 1 2 . . 1 1 1 . . . 1 1 . . . Garrison Access 1 | . . . . . . . . . . . . . . . . . . 1 . . . . . . . . Garrison Relay 14 | . . . . . . . . . 5 . . . 6 . . . 3 . . . . . . . . . Phase Generator 1 | . . . . . . . . . . . . . 1 . . . . . . . . . . . . . Machines Repaired . | . . . . . . . . . . . . . . . . . . . . . . . . . . . Machines Dismantled 1 | . . . . . . . . . . . . . 1 . . . . . . . . . . . . . Machines Sabotaged . | . . . . . . . . . . . . . . . . . . . . . . . . . . . Overloaded Fab Kills . | . . . . . . . . . . . . . . . . . . . . . . . . . . . Hacking | -11 -10 -10 -9 -9 -9 -8 -8 -8 -8 -8 -8 -6 -6 -6 -6 -5 -5 -5 -5 -5 -5 -4 -4 -4 -4 -4 --------- Run | Yrd Mat Min Mat Min Exi Min Mat Sto Gar Rec Scr Fac Gar Fac DSF Fac Gar Fac Upp Upp War Pro Fac Was Fac Gar Machines Accessed 70 | . 8 1 10 1 1 . 9 12 4 10 . 7 1 1 . 1 2 . . . . . 1 . 1 . Terminals 49 | . 7 . 8 . . . 7 9 4 6 . 3 1 1 . . 2 . . . . . 1 . . . Fabricators 1 | . . . . . . . . . . . . 1 . . . . . . . . . . . . . . Repair Stations 6 | . 1 . . . . . 2 2 . . . 1 . . . . . . . . . . . . . . Recycling Units 4 | . . . . . . . . . . 4 . . . . . . . . . . . . . . . . Scanalyzers 3 | . . . 2 . . . . . . . . 1 . . . . . . . . . . . . . . Garrison Access 4 | . . . . . . . . 1 . . . 1 . . . 1 . . . . . . . . 1 . Total Hacks 162 | . 19 1 26 1 1 . 37 32 7 19 . 11 2 1 . 1 2 . . . . . 1 . 1 . Successful 90 | . 9 1 16 1 1 . 25 15 1 11 . 5 . 1 . 1 1 . . . . . 1 . 1 . Failed 71 | . 10 . 9 . . . 12 17 6 8 . 6 2 . . . 1 . . . . . . . . . Catastrophic 15 | . 2 . 2 . . . 1 3 2 2 . 2 1 . . . . . . . . . . . . . Database Lockouts 1 | . . . 1 . . . . . . . . . . . . . . . . . . . . . . . Manual 69 | . 13 . 13 . 1 . 20 6 1 14 . . . . . . . . . . . 1 . . . . Terminals 115 | . 16 . 22 . . . 25 22 7 13 . 4 2 1 . . 2 . . . . . 1 . . . Fabricators 1 | . . . . . . . . . . . . 1 . . . . . . . . . . . . . . Repair Stations 27 | . 3 . . . . . 12 9 . . . 3 . . . . . . . . . . . . . . Recycling Units 6 | . . . . . . . . . . 6 . . . . . . . . . . . . . . . . Scanalyzers 6 | . . . 4 . . . . . . . . 2 . . . . . . . . . . . . . . Garrison Access 4 | . . . . . . . . 1 . . . 1 . . . 1 . . . . . . . . 1 . Terminal Hacks 36 | . 5 1 10 1 1 . 7 5 1 1 . 1 . 1 . . 1 . . . . . 1 . . . Robot Analysis 3 | . 3 . . . . . . . . . . . . . . . . . . . . . . . . . Prototype ID Bank 7 | . . . 5 . . . 1 . . 1 . . . . . . . . . . . . . . . . Open Door 4 | . . 1 . 1 . . . 2 . . . . . . . . . . . . . . . . . . Open DSF 2 | . . . . . . . . . . . . . . 1 . . . . . . . . 1 . . . Level Access Points 1 | . . . . . . . 1 . . . . . . . . . . . . . . . . . . . Branch Access Points 1 | . . . . . . . 1 . . . . . . . . . . . . . . . . . . . Emergency Access Points 1 | . . . . . . . . . . . . . . . . . 1 . . . . . . . . . Alert Level 4 | . . . 1 . . . 2 1 . . . . . . . . . . . . . . . . . . Unreport Threat 1 | . . . . . . . . 1 . . . . . . . . . . . . . . . . . . Locate Traps 7 | . 2 . 2 . . . 1 1 . . . 1 . . . . . . . . . . . . . . Hauler Manifests 2 | . . . 1 . . . 1 . . . . . . . . . . . . . . . . . . . Registered Prototypes 1 | . . . 1 . . . . . . . . . . . . . . . . . . . . . . . Security Stations 1 | . . . . . . . . . 1 . . . . . . . . . . . . . . . . . Proto ID Catalog 1 | . . . . . 1 . . . . . . . . . . . . . . . . . . . . . Fabricator Hacks . | . . . . . . . . . . . . . . . . . . . . . . . . . . . Repair Station Hacks 23 | . 3 . . . . . 10 8 . . . 2 . . . . . . . . . . . . . . Scan Component 12 | . 2 . . . . . 5 4 . . . 1 . . . . . . . . . . . . . . Repair 11 | . 1 . . . . . 5 4 . . . 1 . . . . . . . . . . . . . . Recycling Unit Hacks 1 | . . . . . . . . . . 1 . . . . . . . . . . . . . . . . Report Inventory 1 | . . . . . . . . . . 1 . . . . . . . . . . . . . . . . Scanalyzer 4 | . . . 3 . . . . . . . . 1 . . . . . . . . . . . . . . Insert Component 1 | . . . 1 . . . . . . . . . . . . . . . . . . . . . . . Retrieve Study 3 | . . . 2 . . . . . . . . 1 . . . . . . . . . . . . . . Garrison Access Hacks 4 | . . . . . . . . 1 . . . 1 . . . 1 . . . . . . . . 1 . Unlock Access 4 | . . . . . . . . 1 . . . 1 . . . 1 . . . . . . . . 1 . Unauthorized Hacks 22 | . 1 . 3 . . . 8 1 . 9 . . . . . . . . . . . . . . . . Terminals 18 | . 1 . 3 . . . 8 1 . 5 . . . . . . . . . . . . . . . . Botnet 7 | . 1 . 2 . . . 3 1 . . . . . . . . . . . . . . . . . . Operators 1 | . . . 1 . . . . . . . . . . . . . . . . . . . . . . . Skim 10 | . . . . . . . 5 . . 5 . . . . . . . . . . . . . . . . Fabricators . | . . . . . . . . . . . . . . . . . . . . . . . . . . . Repair Stations . | . . . . . . . . . . . . . . . . . . . . . . . . . . . Recycling Units 4 | . . . . . . . . . . 4 . . . . . . . . . . . . . . . . Tunnel 4 | . . . . . . . . . . 4 . . . . . . . . . . . . . . . . Scanalyzers . | . . . . . . . . . . . . . . . . . . . . . . . . . . . Garrison Access . | . . . . . . . . . . . . . . . . . . . . . . . . . . . Data Cores Recovered . | . . . . . . . . . . . . . . . . . . . . . . . . . . . Used . | . . . . . . . . . . . . . . . . . . . . . . . . . . . Hacking Detections 53 | . 8 . 7 . . . 8 10 4 6 . 6 1 . . 1 2 . . . . . . . . . Full Trace Events 10 | . 2 . . . . . 1 3 2 2 . . . . . . . . . . . . . . . . Feedback Events . | . . . . . . . . . . . . . . . . . . . . . . . . . . . Feedback Blocked . | . . . . . . . . . . . . . . . . . . . . . . . . . . . Robot Schematics Acquired . | . . . . . . . . . . . . . . . . . . . . . . . . . . . Robots Built . | . . . . . . . . . . . . . . . . . . . . . . . . . . . Authchips . | . . . . . . . . . . . . . . . . . . . . . . . . . . . Time . | . . . . . . . . . . . . . . . . . . . . . . . . . . . Total Robot Build Rating . | . . . . . . . . . . . . . . . . . . . . . . . . . . . Part Schematics Acquired . | . . . . . . . . . . . . . . . . . . . . . . . . . . . Parts Built . | . . . . . . . . . . . . . . . . . . . . . . . . . . . Authchips . | . . . . . . . . . . . . . . . . . . . . . . . . . . . Time . | . . . . . . . . . . . . . . . . . . . . . . . . . . . Total Part Build Rating . | . . . . . . . . . . . . . . . . . . . . . . . . . . . Part Studies Acquired 3 | . . . 2 . . . . . . . . 1 . . . . . . . . . . . . . . Parts Repaired 11 | . 1 . . . . . 5 4 . . . 1 . . . . . . . . . . . . . . Time 358 | . 26 . . . . . 142 152 . . . 38 . . . . . . . . . . . . . . Parts Recycled . | . . . . . . . . . . . . . . . . . . . . . . . . . . . Recycled Matter . | . . . . . . . . . . . . . . . . . . . . . . . . . . . Retrieved Matter . | . . . . . . . . . . . . . . . . . . . . . . . . . . . Retrieved Components . | . . . . . . . . . . . . . . . . . . . . . . . . . . . Parts Scanalyzed . | . . . . . . . . . . . . . . . . . . . . . . . . . . . Part Schematics Acquired . | . . . . . . . . . . . . . . . . . . . . . . . . . . . Parts Damaged . | . . . . . . . . . . . . . . . . . . . . . . . . . . . Bothacking | -11 -10 -10 -9 -9 -9 -8 -8 -8 -8 -8 -8 -6 -6 -6 -6 -5 -5 -5 -5 -5 -5 -4 -4 -4 -4 -4 ------------ Run | Yrd Mat Min Mat Min Exi Min Mat Sto Gar Rec Scr Fac Gar Fac DSF Fac Gar Fac Upp Upp War Pro Fac Was Fac Gar Used RIF Installer 3 | . . . . . . . . . 1 . . . 1 . . . 1 . . . . . . . . . Watcher Feeds 1 | . . . . . . . . . . . . . . . . . 1 . . . . . . . . . Program Shield 1 | . . . . . . . . . . . . . 1 . . . . . . . . . . . . . Robots Hacked 2 | . . . . . . . . . . . . . . . . . . . . . . . . 2 . . Non-combat . | . . . . . . . . . . . . . . . . . . . . . . . . . . . Combat 2 | . . . . . . . . . . . . . . . . . . . . . . . . 2 . . Robot Hacks Applied 2 | . . . . . . . . . . . . . . . . . . . . . . . . 2 . . ignore_targets 2 | . . . . . . . . . . . . . . . . . . . . . . . . 2 . . Relay Couplers Released 61 | . . . . . . . . . 21 . . . 26 . . . 11 3 . . . . . . . . Machine Destruction 61 | . . . . . . . . . 21 . . . 26 . . . 11 3 . . . . . . . . Attached 2 | . . . . . . . . . 1 . . . . . . . . . . . . . 1 . . . Fabnet Peak Effective % . | . . . . . . . . . . . . . . . . . . . . . . . . . . . Robots Rewired 16 | . . . . . . . . . 7 . . . 1 . . . 8 . . . . . . . . . Allies Hacked 1 | . . . . . . . . . . . . . . . . . . . . . . . . . . 1 Hacks Repelled . | . . . . . . . . . . . . . . . . . . . . . . . . . . . Allies | -11 -10 -10 -9 -9 -9 -8 -8 -8 -8 -8 -8 -6 -6 -6 -6 -5 -5 -5 -5 -5 -5 -4 -4 -4 -4 -4 -------- Run | Yrd Mat Min Mat Min Exi Min Mat Sto Gar Rec Scr Fac Gar Fac DSF Fac Gar Fac Upp Upp War Pro Fac Was Fac Gar Total Allies 54 | . . . . 3 . . . 10 7 . . . 4 . 1 . 11 . . . . . . 18 . . Largest Group 18 | . . . . 3 . . . 10 10 . . . 3 2 3 3 9 6 1 . . . . 18 14 14 Highest-Rated Group 638 | . . . . 40 . . . 173 165 . . . 237 198 288 288 576 486 49 . . . . 638 505 505 Highest-Rated Ally 148 | . . . . 16 . . . 29 31 . . . 148 148 148 148 148 148 49 . . . . 50 50 50 Total Orders 2 | . . . . . . . . . . . . . . . . . 2 . . . . . . . . . STAY 1 | . . . . . . . . . . . . . . . . . 1 . . . . . . . . . FOLLOW 1 | . . . . . . . . . . . . . . . . . 1 . . . . . . . . . Ally Attacks 650 | . . . . 12 . . . 39 135 . . . 43 . 24 25 40 84 1 . . . . 196 . 51 Total Damage 15750 | . . . . 158 . . . 523 1839 . . . 1526 . 605 1865 1287 2940 49 . . . . 4103 . 855 Kills 88 | . . . . . . . . 5 19 . . . 11 . 4 9 7 20 . . . . . 6 . 7 Allies Corrupted . | . . . . . . . . . . . . . . . . . . . . . . . . . . . Allies Melted . | . . . . . . . . . . . . . . . . . . . . . . . . . . . Field Lobotomies 3 | . . . . . . . . . . . . . 1 . 1 . 1 . . . . . . . . . Intel | -11 -10 -10 -9 -9 -9 -8 -8 -8 -8 -8 -8 -6 -6 -6 -6 -5 -5 -5 -5 -5 -5 -4 -4 -4 -4 -4 ------- Run | Yrd Mat Min Mat Min Exi Min Mat Sto Gar Rec Scr Fac Gar Fac DSF Fac Gar Fac Upp Upp War Pro Fac Was Fac Gar Active Infowar (turns) 6479 | 107 1576 493 . . . . . . . . . . 43 15 107 807 279 . 234 1035 361 144 342 585 165 186 Optics 1278 | . . . . . . . . . . . . . . . . . . . . . . . 342 585 165 186 Seismic 2178 | 107 1576 493 . . . . . . . . . . . . . 2 . . . . . . . . . . Jamming 4039 | . . . . . . . . . . . . . 43 15 107 807 279 . 234 1035 361 144 157 583 165 109 Robot Analysis Total 3 | . 3 . . . . . . . . . . . . . . . . . . . . . . . . . Derelict Logs Recovered 8 | . . 2 . 1 . . . . . . . . . . . . . . . 2 . 3 . . . . Drone Launches . | . . . . . . . . . . . . . . . . . . . . . . . . . . . Drone Recoveries . | . . . . . . . . . . . . . . . . . . . . . . . . . . . Exploration | -11 -10 -10 -9 -9 -9 -8 -8 -8 -8 -8 -8 -6 -6 -6 -6 -5 -5 -5 -5 -5 -5 -4 -4 -4 -4 -4 ------------- Run | Yrd Mat Min Mat Min Exi Min Mat Sto Gar Rec Scr Fac Gar Fac DSF Fac Gar Fac Upp Upp War Pro Fac Was Fac Gar Turns Passed 36589 | 235 1632 1082 3310 1884 963 1602 3101 2200 2568 2301 2140 1924 2718 15 299 810 2905 561 591 1035 361 1074 342 585 165 186 Spaces Moved 15676 | 110 884 574 1476 696 478 750 1363 751 990 524 978 782 1150 4 157 276 1349 294 287 573 149 511 184 240 95 51 Core 21 | 21 . . . . . . . . . . . . . . . . . . . . . . . . . . Treads 15655 | 89 884 574 1476 696 478 750 1363 751 990 524 978 782 1150 4 157 276 1349 294 287 573 149 511 184 240 95 51 Legs . | . . . . . . . . . . . . . . . . . . . . . . . . . . . Wheels . | . . . . . . . . . . . . . . . . . . . . . . . . . . . Hover . | . . . . . . . . . . . . . . . . . . . . . . . . . . . Flight . | . . . . . . . . . . . . . . . . . . . . . . . . . . . Fastest Speed 50 | 50 160 160 160 200 200 200 160 225 225 218 218 210 154 155 155 155 155 163 163 163 163 158 158 158 160 158 Average Speed 189 | 162 160 160 194 200 200 200 174 225 225 219 218 215 183 155 155 159 169 163 163 163 236 177 158 182 160 159 Slowest Speed 305 | 250 240 160 240 200 200 200 230 305 228 228 218 218 232 155 155 160 240 163 163 163 245 240 158 238 160 160 Overloaded Moves . | . . . . . . . . . . . . . . . . . . . . . . . . . . . Propulsion Burnouts . | . . . . . . . . . . . . . . . . . . . . . . . . . . . Robots Hopped . | . . . . . . . . . . . . . . . . . . . . . . . . . . . Potential Cave-ins . | . . . . . . . . . . . . . . . . . . . . . . . . . . . Cave-ins Triggered . | . . . . . . . . . . . . . . . . . . . . . . . . . . . Exploration Rate (%) 64 | 7 99 96 99 99 90 97 84 95 91 96 59 19 96 . 91 6 97 11 44 78 17 76 8 96 5 9 Regions Visited 26 Branch Regions 11 Pre-discovered Areas 12 | . . 1 . 2 . . 2 . . 4 1 . . . . . . . . 1 . 1 . . . . Known Exits Taken 9 | . . . . . . 1 1 1 . 1 . 1 . 1 . 1 . . . 1 . . . . 1 . Unknown Exits Taken 11 | 1 1 1 1 1 1 . . . . . 1 . . . . . . 1 1 . 1 1 . . . . Scrap Searched 16 | . . 1 . 2 . 3 . . . . 5 . . . . . . . 3 2 . . . . . . Spaces Dug 54 | . 8 1 7 . . 2 2 1 . . . 3 18 . . . 4 . . . 4 2 2 . . . Terrain Destroyed 978 | . 37 34 83 2 . 161 161 1 44 . . 19 200 . 3 8 84 6 46 21 6 50 4 1 . 7 Melee 43 | . 8 1 7 . . 2 2 1 . . . 3 18 . . . 1 . . . . . . . . . Projectile 141 | . . 1 . 2 . 2 1 . . . . 2 8 . 3 8 18 6 16 21 6 35 4 1 . 7 AOE 793 | . 29 32 76 . . 157 158 . 44 . . 14 174 . . . 64 . 30 . . 15 . . . . Terrain Rammed . | . . . . . . . . . . . . . . . . . . . . . . . . . . . Walls Destroyed . | . . . . . . . . . . . . . . . . . . . . . . . . . . . Machines Disabled . | . . . . . . . . . . . . . . . . . . . . . . . . . . . Actions | -11 -10 -10 -9 -9 -9 -8 -8 -8 -8 -8 -8 -6 -6 -6 -6 -5 -5 -5 -5 -5 -5 -4 -4 -4 -4 -4 --------- Run | Yrd Mat Min Mat Min Exi Min Mat Sto Gar Rec Scr Fac Gar Fac DSF Fac Gar Fac Upp Upp War Pro Fac Was Fac Gar Total 20752 | 139 996 674 1731 1176 487 792 1895 1123 1222 1647 990 948 1497 13 199 625 1752 346 349 624 151 585 223 365 109 94 Wait 3142 | 4 8 41 55 466 6 . 368 248 64 1097 . 81 69 10 3 314 126 31 10 13 . 11 15 84 10 8 Move 15653 | 109 883 573 1475 695 477 749 1362 751 988 523 977 782 1149 3 156 275 1348 293 286 572 148 510 184 239 95 51 Hop . | . . . . . . . . . . . . . . . . . . . . . . . . . . . Pick Up 158 | 7 16 7 22 1 2 2 17 11 5 1 4 7 12 . 7 5 16 1 . 3 . . 5 6 . 1 Fast Attach 98 | 6 1 1 1 . . . 4 11 4 1 1 6 21 . 1 3 15 5 6 3 . 3 1 3 1 . Attach 64 | 1 1 1 2 1 . 2 8 . 1 . . 8 7 . . 2 11 . 4 1 . 5 3 1 . 5 Detach 35 | . . . . . . . . 2 1 . . 3 3 . . 2 9 . 5 1 . 3 2 1 1 2 Swap 249 | . 12 12 42 3 . 3 18 18 20 3 2 14 29 . 8 6 22 2 8 6 . 9 4 8 . . Drop 229 | . 15 5 38 3 2 . 19 13 7 4 6 7 36 . 10 8 29 3 4 5 . 2 3 7 2 1 Fire 907 | 12 49 32 87 6 . 27 90 59 58 18 . 33 134 . 10 10 134 11 25 20 3 42 6 15 . 26 Melee 78 | . 11 2 8 . . 2 2 8 13 . . 5 25 . . . 1 . . . . . . 1 . . Ram . | . . . . . . . . . . . . . . . . . . . . . . . . . . . Kick . | . . . . . . . . . . . . . . . . . . . . . . . . . . . Crush 20 | . . . 1 1 . 7 7 2 . . . 2 . . . . . . . . . . . . . . Escape Stasis 21 | . . . . . . . . . 15 . . . 3 . . . 3 . . . . . . . . . Rewire 90 | . . . . . . . . . 46 . . . 1 . 4 . 38 . 1 . . . . . . . Trap . | . . . . . . . . . . . . . . . . . . . . . . . . . . . Miscellaneous 8 | . . . . . . . . . . . . . 8 . . . . . . . . . . . . . Route ------- -11/Scrapyard -10/Materials (discovered 5 exits: *Mat x3 / *Min / [*Sub]) -10/Mines (discovered 2 exits: *Mat x2) -9/Materials (discovered 4 exits: *Mat x3 / *Min) -9/Mines (discovered 3 exits: *Mat x2 / *Exi) -9/Exiles (discovered 2 exits: [*Min x2]) -8/Mines (discovered 2 exits: *Mat x2) -8/Materials (discovered 5 exits: *Fac x3 / *Sto x2) -8/Storage (discovered 3 exits: *Fac / *Rec / Gar) -8/Garrison (discovered 3 exits: *Rec x3) -8/Recycling (discovered 2 exits: *Fac / *Scr) -8/Scraptown -6/Factory (discovered 4 exits: Fac / *Low x2 / Gar) -6/Garrison (discovered 4 exits: *Fac x4) -6/Factory -6/DSF -5/Factory -5/Garrison (discovered 3 exits: [*Fac x3]) -5/Factory -5/Upper Caves -5/Upper Caves -5/Warlord -4/Proximity Caves -4/Factory -4/Waste -4/Factory -4/Garrison History --------- Turn | Location | Event 21 | -11/Scrapyard | Discovered new exit (range 16) 236 | -11/Scrapyard | Entered Materials 329 | -10/Materials | Build established: Mutant 499 | -10/Materials | Discovered new exit (range 14) 666 | -10/Materials | Discovered new exit (range 15) 961 | -10/Materials | Discovered new exit (range 4) 1046 | -10/Materials | Discovered new exit (range 13) 1552 | -10/Materials | Discovered new exit (range 4) 1560 | -10/Materials | Repaired Lgt. Treads? 1868 | -10/Materials | Entered Mines 2114 | -10/Mines | Discovered new exit (range 12) 2364 | -10/Mines | Met a Derelict shopkeep closing up shop 2552 | -10/Mines | Discovered new exit (range 10) 2629 | -10/Mines | A weapon hastily lodged in a ceiling crevice suddenly fell to the ground 2677 | -10/Mines | Learned location of Zion (-6) 2695 | -10/Mines | Learned 2 Materials zone layouts 2794 | -10/Mines | Joined a pair of Derelicts in attacking an 0b10 outpost 2950 | -10/Mines | Entered Materials 2950 | -9/Materials | Evolved 2 slots: Propulsion x1, Weapon x1 2951 | -9/Materials | Identified exit to Materials 3261 | -9/Materials | Build established: Scavenger-Tank 3263 | -9/Materials | Discovered exit to Materials (range 5) 3622 | -9/Materials | Discovered new exit (range 13) 4975 | -9/Materials | Discovered exit to Materials (range 13) 5233 | -9/Materials | Build established: Scavenger-Mutant 5339 | -9/Materials | Central database locked down 5891 | -9/Materials | Build established: Scavenger-Tank 6260 | -9/Materials | Entered Mines 6261 | -9/Mines | Assembled infested the area 6266 | -9/Mines | Assisted by bots powering up and referring to "LRC-V3" 6320 | -9/Mines | Met 8R-AWN 6375 | -9/Mines | Lost 3 allies 6462 | -9/Mines | Met a Derelict who couldn't figure out how to use a Trap Extractor 7178 | -9/Mines | Discovered new exit (range 5) 7399 | -9/Mines | Discovered exit to Materials (range 16) 7703 | -9/Mines | Received a Rocket Launcher from a helpful Derelict 7800 | -9/Mines | Discovered exit to Materials (range 15) 7821 | -9/Mines | Learned location of Storage (-8) 8144 | -9/Mines | Entered Exiles 8170 | -9/Exiles | Discovered new exit (range 15) 8194 | -9/Exiles | Welcomed by 8R-AWN 8224 | -9/Exiles | Met EX-HEX 8300 | -9/Exiles | Met EX-BIN 8396 | -9/Exiles | Aligned with FarCom system 8398 | -9/Exiles | Given EX-Vault access code 8444 | -9/Exiles | Opened EX-Vault 8465 | -9/Exiles | Found Field Lobotomy Kit 8506 | -9/Exiles | Warned to stay clear of 0b10 Research branches 8658 | -9/Exiles | Met EX-DEC 8701 | -9/Exiles | Visited The Gauntlet 9077 | -9/Exiles | Discovered new exit (range 14) 9107 | -9/Exiles | Left Exiles lab with Field Lobotomy Kit 9107 | -9/Exiles | Entered Mines 9393 | -8/Mines | Build established: Scavenger-Skirmisher 9516 | -8/Mines | Discovered exit to Materials (range 10) 9554 | -8/Mines | Discovered exit to Materials (range 11) 10049 | -8/Mines | Core integrity fell below 50% 10709 | -8/Mines | Entered Materials 10709 | -8/Materials | Evolved 2 slots: Propulsion x1, Utility x1 10880 | -8/Materials | Identified exit to Storage 10880 | -8/Materials | Identified exit to Factory 11072 | -8/Materials | Repaired Lgt. Treads+ 11099 | -8/Materials | Repaired Lgt. Treads+ 11127 | -8/Materials | Repaired Lgt. Treads+ 11158 | -8/Materials | Build established: Skirmisher 11160 | -8/Materials | Repaired Med. Armor Plating 11479 | -8/Materials | Garrison activated, responded to threat 11564 | -8/Materials | Destroyed 11 combat bots 12857 | -8/Materials | Learned 2 Lower Caves zone layouts 12924 | -8/Materials | Learned location of 1 exit from Lower Caves 12983 | -8/Materials | Learned 4 Lower Caves zone layouts 13032 | -8/Materials | Learned location of 1 exit from Lower Caves 13097 | -8/Materials | Learned location of 1 exit from Recycling 13112 | -8/Materials | Learned location of Lower Caves (-6) 13138 | -8/Materials | Learned 2 Lower Caves zone layouts 13172 | -8/Materials | Learned location of 2 exits from Factory 13216 | -8/Materials | Learned Storage interactive machine intel 13358 | -8/Materials | Repaired Imp. Treads 13810 | -8/Materials | Entered Storage 13811 | -8/Storage | Loaded intel: 18 interactive machine locations 14041 | -8/Storage | Destroyed 7 combat bots 14131 | -8/Storage | Repaired Adv. Treads 14171 | -8/Storage | Repaired Adv. Treads 14210 | -8/Storage | Repaired Adv. Treads 14798 | -8/Storage | Repaired Hrd. Medium Armor Plating 14962 | -8/Storage | Used back door to open Recycling access 14962 | -8/Storage | Discovered new exit (range 5) 15374 | -8/Storage | Assisted by bots powering up and referring to "LRC-V3" 15745 | -8/Storage | Build established: Commander-Mutant 15852 | -8/Storage | Discovered exit to Factory (range 7) 16005 | -8/Storage | Identified exit to Garrison 16010 | -8/Storage | Entered Garrison 16010 | -8/Garrison | Accompanied by 8 allies 16312 | -8/Garrison | Triggered checkpoint 16348 | -8/Garrison | Lost 4 allies 16352 | -8/Garrison | Garrison Relay disabled 16526 | -8/Garrison | Triggered checkpoint 16579 | -8/Garrison | Triggered checkpoint 16609 | -8/Garrison | Triggered checkpoint 16621 | -8/Garrison | Triggered checkpoint 16757 | -8/Garrison | Discovered new exit (range 15) 16887 | -8/Garrison | Triggered checkpoint 16943 | -8/Garrison | Garrison Relay disabled 17040 | -8/Garrison | Triggered checkpoint 17047 | -8/Garrison | Build established: Skirmisher 17185 | -8/Garrison | Garrison Relay disabled 17309 | -8/Garrison | Garrison Relay disabled 17489 | -8/Garrison | Discovered new exit (range 15) 17505 | -8/Garrison | Build established: Commander-Mutant 17562 | -8/Garrison | Installed Relay Interface Framework 17641 | -8/Garrison | Triggered checkpoint 17680 | -8/Garrison | Garrison Relay disabled 17786 | -8/Garrison | Learned Recycling security intel 17939 | -8/Garrison | Build established: Skirmisher 17950 | -8/Garrison | Triggered checkpoint 18320 | -8/Garrison | Discovered new exit (range 15) 18578 | -8/Garrison | Entered Recycling 18579 | -8/Recycling | Identified exit to Scraptown 19261 | -8/Recycling | Scanned before Scraplab entrance 19723 | -8/Recycling | Discovered new exit (range 16) 20855 | -8/Recycling | Entered Scraplab 20879 | -8/Recycling | Entered Scraptown 20879 | -8/Scraptown | System corruption cleaned by C-Scrubber 21175 | -8/Scraptown | Build established: Gunner 21462 | -8/Scraptown | Discovered new exit (range 7) 21900 | -8/Scraptown | Visited Spacefarers 22027 | -8/Scraptown | Visited Comm Corps 22166 | -8/Scraptown | Learned location of Extension (-4) 22281 | -8/Scraptown | Visited Awakened 22331 | -8/Scraptown | Visited Symbiants 22362 | -8/Scraptown | Visited IN-MT5's Study 22832 | -8/Scraptown | Turned away by UFD registrar 22902 | -8/Scraptown | Visited The Evicted 22939 | -8/Scraptown | Visited Fellowship of the Rings 23019 | -8/Scraptown | Entered Factory 23019 | -6/Factory | Evolved 4 slots: Propulsion x1, Utility x2, Weapon x1 23020 | -6/Factory | Identified exit to Factory 23020 | -6/Factory | Identified exit to Lower Caves 24040 | -6/Factory | Repaired Adv. Treads 24486 | -6/Factory | Discovered exit to Lower Caves (range 14) 24943 | -6/Factory | Identified exit to Garrison 24943 | -6/Factory | Entered Garrison 25071 | -6/Garrison | Triggered checkpoint 25231 | -6/Garrison | Garrison Relay disabled 25298 | -6/Garrison | Phase Generator disabled 25357 | -6/Garrison | Garrison Relay disabled 25359 | -6/Garrison | Garrison Relay disabled 25365 | -6/Garrison | Garrison Relay disabled 25552 | -6/Garrison | Spotted B-75 Beast 25561 | -6/Garrison | Assimilated B-75 Beast with FLK Orb 25562 | -6/Garrison | Triggered checkpoint 25583 | -6/Garrison | Triggered checkpoint 25635 | -6/Garrison | Triggered checkpoint 25731 | -6/Garrison | Discovered new exit (range 15) 25816 | -6/Garrison | Triggered checkpoint 25889 | -6/Garrison | Triggered checkpoint 25933 | -6/Garrison | Discovered new exit (range 3) 26012 | -6/Garrison | Garrison Relay disabled 26308 | -6/Garrison | Discovered new exit (range 14) 26698 | -6/Garrison | Spotted B-75 Beast 26771 | -6/Garrison | Triggered checkpoint 26855 | -6/Garrison | Expanded RIF knowledge: Program Shield 26901 | -6/Garrison | Rescued a captive Derelict 26903 | -6/Garrison | Rescued a captive Derelict 27052 | -6/Garrison | Allies destroyed B-75 Beast 27114 | -6/Garrison | Spotted B-75 Beast 27132 | -6/Garrison | Allies destroyed B-75 Beast 27206 | -6/Garrison | Build established: Tank 27230 | -6/Garrison | Rewired B-90 Cyclops 27429 | -6/Garrison | Triggered checkpoint 27465 | -6/Garrison | Triggered checkpoint 27553 | -6/Garrison | Discovered new exit (range 10) 27567 | -6/Garrison | Build established: Scavenger-Tank 27620 | -6/Garrison | Lost 3 parts (2u1w) 27661 | -6/Garrison | Entered Factory 27661 | -6/Factory | Accompanied by 2 allies 27665 | -6/Factory | Identified exit to DSF 27676 | -6/Factory | Entered DSF 27676 | -6/DSF | Accompanied by 2 allies 27692 | -6/DSF | Additional patrols routed to DSF 27775 | -6/DSF | Assimilated H-61 Shepherd with FLK Orb 27899 | -6/DSF | Discovered exit to Factory (range 15) 27905 | -6/DSF | Build established: Tank 27932 | -6/DSF | Sterilization system engaged 27952 | -6/DSF | Ambient heat levels rising (+10) 27967 | -6/DSF | Ambient heat levels rising (+10) 27975 | -6/DSF | Entered Factory 27975 | -5/Factory | Accompanied by 3 allies 27975 | -5/Factory | Evolved 2 slots: Power x1, Propulsion x1 28275 | -5/Factory | First assault squad dispatched 28350 | -5/Factory | Build established: Scavenger-Tank 28517 | -5/Factory | Identified exit to Garrison 28785 | -5/Factory | Entered Garrison 28877 | -5/Garrison | Triggered checkpoint 28964 | -5/Garrison | H-XX Assembler disabled 29126 | -5/Garrison | Spotted B-75 Beast 29167 | -5/Garrison | Destroyed B-75 Beast 29385 | -5/Garrison | Triggered checkpoint 29400 | -5/Garrison | Triggered checkpoint 29460 | -5/Garrison | Triggered checkpoint 29496 | -5/Garrison | Triggered checkpoint 29665 | -5/Garrison | Discovered new exit (range 12) 29679 | -5/Garrison | Triggered checkpoint 29696 | -5/Garrison | System corruption reached 10% 29728 | -5/Garrison | Destroyed 11 combat bots 29871 | -5/Garrison | Spotted B-75 Beast 29905 | -5/Garrison | Spotted B-90 Cyclops 30095 | -5/Garrison | Assimilated B-90 Cyclops with FLK Orb 30110 | -5/Garrison | Allies destroyed B-75 Beast 30171 | -5/Garrison | Rewired B-86 Titan 30197 | -5/Garrison | Rewired B-90 Cyclops 30481 | -5/Garrison | Discovered new exit (range 13) 30705 | -5/Garrison | Triggered checkpoint 30847 | -5/Garrison | Found embedded Infiltrators 31003 | -5/Garrison | Expanded RIF knowledge: Watcher Feeds 31400 | -5/Garrison | Discovered new exit (range 10) 31430 | -5/Garrison | Build established: Commander-Tank 31445 | -5/Garrison | Triggered checkpoint 31451 | -5/Garrison | Garrison Relay disabled 31479 | -5/Garrison | Triggered checkpoint 31546 | -5/Garrison | Lost 3 allies 31690 | -5/Garrison | Entered Factory 31690 | -5/Factory | Accompanied by 6 allies 31779 | -5/Factory | Garrison activated, responded to threat 31806 | -5/Factory | High security lockdown imminent 31886 | -5/Factory | High security lockdown engaged 32096 | -5/Factory | Build established: Scavenger-Tank 32212 | -5/Factory | Discovered new exit (range 12) 32251 | -5/Factory | Entered Upper Caves 32251 | -5/Upper Caves | Accompanied by 1 ally 32600 | -5/Upper Caves | Found Unknown Protection 32600 | -5/Upper Caves | Identified Imp. Powered Armor 32703 | -5/Upper Caves | System corruption reached 30% 32779 | -5/Upper Caves | Discovered new exit (range 11) 32842 | -5/Upper Caves | Entered another Upper Caves area 32894 | -5/Upper Caves | Build established: Tank 32938 | -5/Upper Caves | Spotted B-75 Beast 33027 | -5/Upper Caves | Identified exit to Warlord 33230 | -5/Upper Caves | Attracted the attention of an 0b10 outpost 33564 | -5/Upper Caves | Attracted the attention of an 0b10 checkpoint 33877 | -5/Upper Caves | Entered Warlord 33951 | -5/Warlord | System corruption cleaned by Quarantine Array 34142 | -5/Warlord | Discovered new exit (range 15) 34238 | -5/Warlord | Entered Proximity Caves 34336 | -4/Proximity Caves | Learned Research emergency access door positions 34372 | -4/Proximity Caves | Spotted B-86 Titan 34412 | -4/Proximity Caves | Destroyed B-86 Titan 34830 | -4/Proximity Caves | Learned Research emergency access door positions 35140 | -4/Proximity Caves | Attracted the attention of an 0b10 checkpoint 35280 | -4/Proximity Caves | Discovered new exit (range 15) 35312 | -4/Proximity Caves | Entered Factory 35312 | -4/Factory | Evolved 2 slots: Utility x2 35441 | -4/Factory | Identified exit to DSF 35654 | -4/Factory | Manually triggered Chute Trap 35654 | -4/Factory | Sucked down chute 35654 | -4/Factory | Entered Waste 35658 | -4/Waste | Spotted C-40 Crusher 35677 | -4/Waste | Spotted C-40 Crusher 35697 | -4/Waste | Spotted C-40 Crusher 35710 | -4/Waste | Warlord forces began an assault 35716 | -4/Waste | Allies destroyed C-40 Crusher 35723 | -4/Waste | Allies destroyed C-40 Crusher 35856 | -4/Waste | Spotted C-40 Crusher 35869 | -4/Waste | Allies destroyed C-40 Crusher 35879 | -4/Waste | Spotted C-40 Crusher 35884 | -4/Waste | Spotted C-40 Crusher 35897 | -4/Waste | Allies destroyed C-40 Crusher 35903 | -4/Waste | Allies destroyed C-40 Crusher 35972 | -4/Waste | Build established: Skirmisher 36131 | -4/Waste | Discovered new exit (range 22) 36239 | -4/Waste | Entered Factory 36239 | -4/Factory | Accompanied by 14 allies 36394 | -4/Factory | Identified exit to Garrison 36404 | -4/Factory | Entered Garrison 36404 | -4/Garrison | Accompanied by 14 allies 36492 | -4/Garrison | Triggered checkpoint 36493 | -4/Garrison | Spotted B-86 Titan 36539 | -4/Garrison | Destroyed B-86 Titan 36539 | -4/Garrison | P-80 Master assimilated allied MH-KAP(g) 36561 | -4/Garrison | Lost 12 allies 36590 | -4/Garrison | Self-destructed Last Messages --------------- 36580_ Adv. Medium Treads destroyed. 36581_ Overheating: Arm. Medium Treads damaged (-86). 36581_ Overheating: Relay Coupler [NC] damaged (-1). 36581_ Overheating: Hvy. Treads damaged (-12). 36581_ Overheating: Rnf. Quantum Reactor damaged (-50). 36582_ Overheating: Matter decay (-45). 36582_ Slug penetrates G-67 Veteran. 36582_ G-67 Veteran knocked back. 36582_ Hvy. Treads destroyed. 36583_ Enh. Hardcell Cannon destroyed. 36585_ Slug penetrates Wall. 36586_ Railgun destroyed. 36586_ Arm. Medium Treads destroyed. 36587_ Overheating: Matter decay (-56). 36588_ Power failure, Rnf. Quantum Reactor shutdown. 36589_ Overheating: Rnf. Quantum Reactor damaged (-3). 36589_ Overheating: Relay Coupler [NC] damaged (-3). 36589_ Overheating: Enh. Optical Array damaged (-16). 36589_ Railgun destroyed. 36590_ Overheating: Matter decay (-38). Map ----- +----------------------------------------------------+ | ?????????????????????????????????????????????????? | | ?????????????????????????????????????????????????? | | ?????????????????????????????????????????????????? | | ?????????????????????????????????????????????????? | | ?????????????????????????????????????????????????? | | ?????????????????????#######?????????????????????? | | ?????????????????????# #?????????????????????? | | ?????????????????????# #?????????????????????? | | ?????????????????????# #?????????????????????? | | ?????????????????????# #?????????????????????? | | ?????????????????????# #?????????????????????? | | ?????????????????????## ##?????????????????????? | | ??????????????????????# #??????????????????????? | | ??????????????????????# #??????????????????????? | | ??????????????????????# #??????????????????????? | | ??????????????????????# #??????????????????????? | | ??????????????????????# #??????????????????????? | | ??????????????????????# #??????????????????????? | | ??????????############# #????#?????????????????? | | ??????????# #???+ ?????????????????? | | ??????????# #???+??????????????????? | | ??????????# #####Y### ####?? #??????????????????? | | ??????????#= #???????# #?????+##?????????????????? | | ??????????#%=#?????# # #????% #?????????????????? | | ??????????#[%#??????#%=%####%*C####### #?????????? | | ??????????#%*#???????#g!*@!=*%pYp[=* ; ??? | | ??????????#=!*???????###g#%%######### #????????? | | ??????????#%=#????????#[ ?###????????????????????? | | ??????????#=%#????????##?????????????????????????? | | ??????????# [#???????????????????????????????????? | | ??????????# !#???????????????????????????????????? | | ?????????? *%[???????????????????????????????????? | | ?????????? ! ???????????????????????????????????? | | ?????????? ???????????????????????????????????? | | ??????????" ???????????????????????????????????? | | ??????????# ???????????????????????????????????? | | ?????????? ???????????????????????????????????? | | ?????????? ???????????????????????????????????? | | ?????????? "??????????????????????????????????? | | ?????????? "??????????????????????????????????? | | ??????????# ???????????????????????????????????? | | ??????????? ^???????????????????????????????????? | | ?????????????????????????????????????????????????? | | ?????????????????????????????????????????????????? | | ?????????????????????????????????????????????????? | | ?????????????????????????????????????????????????? | | ?????????????????????????????????????????????????? | | ?????????????????????????????????????????????????? | | ?????????????????????????????????????????????????? | | ?????????????????????????????????????????????????? | +----------------------------------------------------+ Best States ------------- Heat Dissipation 75 Energy Generation 45 Energy Capacity 600 Matter Stores 300 Matter Capacity 300 Sight Range 22 Terrain Scan Density 10 Jamming Range 16 EM Shielding 3 Armor Coverage 1200 Resistance: KI 20 Resistance: TH 15 Evasion (%) 40 Targeting Accuracy 16 Core Analysis 6 Recoil Reduction 6 Kinecelleration 40 Relay Coupler Types 1 Relay Coupler Value 44 Item Schematics ----------------- None Robot Schematics ------------------ None Fabricated ------------ Nothing Repaired ---------- Lgt. Treads | 17% | -10/Materials Lgt. Treads | 45% | -8/Materials Lgt. Treads | 57% | -8/Materials Lgt. Treads | 64% | -8/Materials Med. Armor Plating | 35% | -8/Materials Imp. Treads | 18% | -8/Materials Adv. Treads | 71% | -8/Storage Adv. Treads | 73% | -8/Storage Adv. Treads | 74% | -8/Storage Hrd. Medium Armor Plating | 49% | -8/Storage Adv. Treads | 1% | -6/Factory Studied --------- Lgt. Treads | -9/Materials | Hacked Hvy. Assault Rifle | -9/Materials | Hacked Imp. Treads | -6/Factory | Hacked Alien Tech Used ----------------- None Achievements -------------- None Challenges ------------ None Game ------ Seed GatlingImpactRay Manual? 0 Play Time 03:05:17 Cumulative 273.3 hours Start 2026.07.28 @ 23:06:26 End 2026.08.01 @ 19:30:23 Sessions 6 Manual Loads 0 Difficulty Rogue Special Mode None Game No. 143 Rogue 139 Adventurer 4 Explorer 0 Win Type - Total 6 Types 3/0/1/1/0/0/0/1/0/0 Lore% 80 Gallery% 70 Achievement% 55 Wizard Run 0 Options --------- Layout 0 ASCII 0 Keyboard 1 Movement Vi Keybinds 0 Fullscreen 2 Font 24/Crisp Map View 76x50 Zoom Use 0% Tactical HUD 1 Map Filters NONE Filters NONE Steam 1 RUN: 8ac85119-3dc1-4595-9869-7182ee4b7343